bitfinex/quotes_ETHUSD_20250801
["timestamp","ask_amount","ask_price","bid_price","bid_amount"]
[1754041455580,0.1376,3636.7,3636.6,2.74982126]
[1754041455779,4.3446,3636.7,3636.6,2.74982126]
[1754041456580,4.3436,3636.7,3636.6,2.74982126]
[1754041457682,5.9148,3636.7,3636.1,0.1376]
[1754041457882,4.206,3636.6,3636.5,2.74989687]
[1754041459781,4.206,3636.6,3635.4,3.4407]
[1754041459782,7.93987259,3636.6,3635.4,3.4407]
[1754041460087,11.33792588,3635.8,3635.5,2.1657]
[1754041460290,11.33792588,3635.8,3635.7,2.75050196]
[1754041461297,11.33792588,3635.8,3635.7,5.75050196]
[1754041461506,11.33792588,3636.2,3636.1,2.75019938]
[1754041461703,15.54392588,3636.2,3636.1,2.75019938]
[1754041461922,11.33792588,3636.2,3636.1,2.75019938]
[1754041462105,15.54392588,3636.2,3636.1,2.75019938]
[1754041462302,11.33792588,3636.2,3636.1,2.75019938]
[1754041462601,11.33792588,3636.2,3636.1,3.19089938]
[1754041462807,11.33792588,3636.2,3636.1,4.91589938]
[1754041463012,11.33792588,3636.2,3636.1,2.75019938]
[1754041467033,11.33792588,3636.2,3635.7,10.41827796]
[1754041467034,0.4374,3636.8,3635.7,11.44372414]
[1754041467202,11.33792588,3636.4,3636.3,2.74999398]
[1754041467541,15.54292588,3636.4,3636.3,2.74999398]
[1754041468198,17.11412588,3636.4,3636.3,2.74999398]
[1754041468938,15.54292588,3636.4,3636.3,2.74999398]
[1754041469435,11.33792588,3636.8,3636.7,2.74974564]
[1754041469933,15.54292588,3636.8,3636.7,2.74974564]
[1754041470230,11.47552588,3636.8,3636.7,2.74974564]
[1754041470434,11.33792588,3637.2,3637.1,2.74944323]
[1754041470654,15.68052588,3637.2,3637.1,2.74944323]
[1754041470821,11.47552588,3637.2,3637.1,2.74944323]
[1754041471025,9.35523831,3638.7,3637.5,2.74914089]
[1754041471026,11.33792588,3637.6,3637.5,2.74914089]
[1754041471238,12.90912588,3637.6,3637.5,2.74914089]
[1754041471462,17.68912588,3637.6,3637.4,2.74919901]
[1754041471648,1.5712,3637.5,3637.4,2.74919901]
[1754041471843,1.7088,3637.5,3637.4,2.74919901]
[1754041472356,4.3426,3637.5,3637.4,2.74919901]
[1754041472662,5.9138,3637.5,3637.4,2.74919901]
[1754041473061,0.1376,3637.5,3637.4,2.74919901]
[1754041473361,10.29825805,3638.7,3638.0,2.74876305]
[1754041473362,11.33792588,3638.1,3638.0,2.74876305]
[1754041473570,15.68052588,3638.1,3638.0,2.74876305]
[1754041473867,15.68052588,3638.1,3637.9,2.74882962]
[1754041473868,17.25172588,3638.1,3637.9,2.74882962]
[1754041474225,1.5712,3638.0,3637.9,2.74878334]
[1754041475561,3.77751259,3638.0,3637.7,2.74898496]
[1754041475862,6.2126,3637.9,3637.6,0.1376]
[1754041476066,11.33792588,3637.7,3637.3,2.74928553]
[1754041476269,11.33792588,3637.7,3637.4,2.7492042]
[1754041476270,4.204,3637.6,3637.4,2.7492042]
[1754041476590,6.2126,3637.6,3637.4,2.7492042]
[1754041476729,2.0086,3637.5,3637.4,2.7492042]
[1754041477649,5.7752,3637.5,3637.4,2.7492042]
[1754041477852,11.47552588,3637.7,3637.6,2.74906531]
[1754041477853,4.204,3637.7,3637.6,2.74906531]
[1754041478150,11.47552588,3638.1,3638.0,2.74876305]
[1754041478355,15.67952588,3638.1,3638.0,2.74876305]
[1754041478965,11.47552588,3638.1,3638.0,2.74876305]
[1754041479324,11.33792588,3638.1,3638.0,2.74876305]
[1754041479649,15.54192588,3638.1,3638.0,2.74876305]
[1754041479966,11.33792588,3638.1,3638.0,2.74876305]
[1754041482437,11.33792588,3638.5,3638.1,2.748623]
[1754041482651,4.203,3638.4,3638.3,2.7485364]
[1754041482975,2.0086,3639.8,3639.4,2.74768289]
[1754041483160,12.90912588,3639.5,3639.4,2.74768289]
[1754041483352,11.33792588,3639.8,3639.2,2.74784092]
[1754041483543,0.4374,3640.3,3640.0,2.7471892]
[1754041483734,7.06,3641.1,3639.9,2.74731834]
[1754041483735,11.33792588,3640.0,3639.9,2.74731834]
[1754041483945,17.11212588,3640.0,3639.7,2.74744935]
[1754041484175,11.33792588,3639.8,3639.3,4.6437]
[1754041484374,15.54092588,3639.8,3639.7,2.74747918]
[1754041484861,4.203,3639.8,3639.6,2.74754139]
[1754041485238,5.7742,3639.8,3639.5,2.74760467]
[1754041485433,5.7742,3639.8,3639.6,2.74754569]
[1754041486205,5.7742,3639.8,3639.6,2.74753394]
[1754041486380,5.7742,3639.8,3639.5,0.20661832]
[1754041486586,5.7742,3639.8,3639.6,2.74755467]
[1754041487207,5.7742,3639.8,3639.3,6.9507716]
[1754041487416,5.7742,3639.8,3639.6,2.74755043]
[1754041487775,5.7742,3639.8,3639.5,2.74760297]
[1754041488077,5.7742,3639.8,3639.3,4.203]
[1754041488277,4.203,3639.8,3639.7,2.74747918]
[1754041488810,4.202,3639.9,3639.7,2.74747918]
[1754041488985,1.7053,3639.8,3639.7,2.74747918]
[1754041489404,1.7053,3639.8,3639.5,2.74762826]
[1754041490094,4.202,3639.9,3639.3,4.4044183]
[1754041490429,22.0188666,3639.7,3639.0,6.94894837]
[1754041490598,6.3774,3639.6,3638.3,3.0]
[1754041490798,2.1764,3639.5,3638.9,2.74807204]
[1754041491006,5.9063,3639.4,3638.3,0.20397704]
[1754041491207,6.3774,3639.3,3638.8,2.74814794]
[1754041491407,2.1764,3639.2,3638.8,2.74814794]
[1754041491732,5.9063,3639.1,3638.9,2.74801247]
[1754041492596,5.9063,3639.1,3638.8,2.7481088]
[1754041493220,4.201,3639.1,3638.8,2.7481088]
[1754041493531,1.7053,3639.0,3638.8,2.7481088]
[1754041494127,2.1764,3638.9,3638.7,0.1376]
[1754041494429,2.1764,3638.9,3638.7,4.201]
[1754041494593,0.4711,3638.9,3638.7,4.201]
[1754041494793,1.7053,3638.8,3638.7,4.201]
[1754041495509,1.7053,3638.8,3638.7,2.74823425]
[1754041495704,2.1764,3638.8,3638.7,2.74823425]
[1754041495905,2.1764,3638.8,3638.6,2.74829509]
[1754041496110,1.7053,3638.7,3638.6,2.74829509]
[1754041496931,1.7053,3638.7,3638.6,2.74830978]
[1754041498411,1.7053,3638.7,3638.5,6.94935913]
[1754041498797,1.7053,3638.7,3638.6,2.74830978]
[1754041499630,1.7053,3638.7,3638.5,6.94937193]
[1754041499830,1.7053,3638.7,3638.3,0.34331239]
[1754041499831,1.7053,3638.6,3638.3,0.1376]
[1754041500035,2.1764,3638.6,3638.3,7.08613326]
[1754041500244,17.56607781,3638.4,3637.4,6.605]
[1754041500402,8.35064778,3638.3,3637.6,4.2]
[1754041500601,0.1376,3638.1,3637.8,2.74886779]
[1754041501135,2.1764,3638.0,3637.8,2.74886779]
[1754041501358,1.7053,3637.9,3637.6,4.2]
[1754041501519,2.314,3637.8,3637.6,4.2]
[1754041501705,0.1376,3637.8,3637.7,2.74898974]
[1754041502402,4.201,3638.5,3637.6,4.2]
[1754041502639,8.7653,3639.0,3638.4,2.74846086]
[1754041502839,4.201,3638.6,3638.4,2.74846086]
[1754041503045,0.1376,3638.5,3638.3,2.74850793]
[1754041503206,5.9063,3638.6,3638.3,2.74850793]
[1754041503410,5.9063,3638.6,3638.5,2.74838532]
[1754041503610,4.3386,3638.6,3638.3,2.74850493]
[1754041503812,1.7053,3638.8,3638.4,2.74845287]
[1754041504126,19.92287781,3638.7,3638.5,2.74838225]
[1754041504306,0.1376,3638.8,3638.7,2.74818362]
[1754041504509,4.3376,3638.8,3638.3,2.2473]
[1754041504707,4.3376,3638.8,3638.5,2.74832637]
[1754041504909,11.31794001,3638.6,3638.5,2.74832637]
[1754041506127,0.1376,3638.8,3638.7,2.74823425]
[1754041506513,4.2,3639.0,3638.9,2.74808321]
[1754041506743,4.3376,3639.0,3638.9,2.74808321]
[1754041506936,0.1376,3639.0,3638.9,2.74808321]
[1754041509353,0.1376,3639.0,3638.7,2.74817311]
[1754041509562,11.31794001,3638.8,3638.7,2.74817857]
[1754041509730,13.16084001,3638.8,3638.7,2.74817857]
[1754041510369,11.45554001,3638.8,3638.7,2.74817857]
[1754041510866,13.16084001,3638.8,3638.7,2.74817857]
[1754041512193,13.16084001,3638.8,3638.3,0.1376]
[1754041512338,11.31794001,3638.4,3638.3,2.88606433]
[1754041512673,11.31794001,3638.4,3638.3,2.74846433]
[1754041518599,11.45554001,3638.5,3638.4,2.74846086]
[1754041518910,11.31794001,3639.0,3638.8,2.74815873]
[1754041519092,11.31794001,3639.0,3638.9,2.74808321]
[1754041519298,16.12954001,3639.0,3638.9,2.74808321]
[1754041519807,17.70024001,3639.0,3638.9,2.74808321]
[1754041520799,17.70024001,3639.0,3638.8,2.74814434]
[1754041521109,2.0447,3638.9,3638.5,4.2]
[1754041521306,11.31794001,3638.6,3638.5,6.94838532]
[1754041521498,12.88864001,3638.6,3638.5,2.74838532]
[1754041521671,13.36264001,3638.6,3638.5,2.74838532]
[1754041521870,19.33266401,3638.6,3638.2,2.74860612]
[1754041522077,0.1376,3638.3,3638.1,2.74864418]
[1754041522406,0.1376,3638.3,3638.1,2.7486875]
[1754041522407,13.36264001,3638.2,3638.1,2.7486875]
[1754041524639,12.88864001,3638.2,3638.1,2.7486875]
[1754041526896,11.31794001,3638.2,3638.1,2.7486875]
[1754041527097,4.199,3639.0,3638.9,2.74808321]
[1754041527298,4.199,3639.0,3638.2,3.0]
[1754041527299,15.51694001,3639.1,3638.6,4.199]
[1754041527626,1.7083,3639.0,3638.9,2.74808321]
[1754041528341,2.1823,3639.0,3638.9,2.74808321]
[1754041530348,3.952224,3639.0,3638.6,2.74830978]
[1754041530516,11.31794001,3638.7,3637.7,4.41246334]
[1754041530751,1.907524,3639.0,3637.7,4.41246334]
[1754041530752,11.31794001,3638.1,3638.0,2.74876305]
[1754041530953,11.31794001,3638.1,3638.0,6.94776305]
[1754041535567,12.88864001,3638.1,3638.0,6.94776305]
[1754041536448,11.31794001,3638.1,3638.0,6.94776305]
[1754041536650,0.1376,3638.2,3638.1,2.7486875]
[1754041537547,1.7083,3638.2,3638.1,2.7486875]
[1754041538077,0.1376,3638.2,3638.1,2.7486875]
[1754041540889,1.7083,3638.2,3638.1,2.7486875]
[1754041541280,8.150224,3638.2,3637.7,2.74898974]
[1754041541480,13.36264001,3638.1,3637.7,4.198]
[1754041541782,13.36264001,3638.1,3637.6,6.94706346]
[1754041541783,0.1376,3637.8,3637.6,6.94706346]
[1754041542018,0.1376,3637.8,3637.3,5.88682401]
[1754041542019,11.31794001,3637.7,3637.3,2.88682401]
[1754041542189,2.0447,3637.6,3637.5,2.74912375]
[1754041542403,2.1823,3637.6,3637.4,4.198]
[1754041542592,2.0447,3637.5,3637.4,6.94720384]
[1754041543102,2.0447,3637.5,3637.2,2.74936501]
[1754041543103,2.0447,3637.5,3637.3,2.74926976]
[1754041543312,0.474,3637.5,3637.3,6.94726976]
[1754041543470,1.7083,3637.4,3637.3,9.94726976]
[1754041543667,1.7083,3637.4,3637.3,6.94726976]
[1754041543869,3.058324,3637.4,3636.7,2.74968103]
[1754041544109,11.31794001,3636.8,3636.7,2.74974564]
[1754041544278,11.45554001,3636.8,3636.7,6.94874564]
[1754041544485,13.02624001,3636.8,3636.3,0.1376]
[1754041544781,2.0447,3636.7,3636.4,4.199]
[1754041544989,1.7083,3636.6,3636.4,2.74997044]
[1754041545169,1.7083,3636.6,3636.5,5.74989687]
[1754041545571,1.7083,3636.6,3636.3,4.199]
[1754041545806,1.7083,3636.6,3636.1,6.94919441]
[1754041545807,11.31794001,3636.4,3636.1,6.94919441]
[1754041545998,2.0447,3636.3,3636.1,6.94919441]
[1754041546233,0.474,3636.3,3636.2,2.75012375]
[1754041546797,1.9773,3636.3,3636.2,2.75012375]
[1754041547336,1.9773,3636.3,3636.1,4.199]
[1754041547503,6.1509,3636.2,3636.0,2.75024728]
[1754041547696,4.199,3636.2,3636.1,2.75019938]
[1754041548347,5.7023,3636.2,3636.1,2.75019938]
[1754041549845,5.7023,3636.2,3636.0,2.75026693]
[1754041550047,12.82124001,3636.1,3636.0,5.75027502]
[1754041550249,12.95884001,3636.1,3635.8,4.199]
[1754041550560,11.90414001,3636.1,3636.0,2.75027502]
[1754041550855,16.10314001,3636.1,3635.9,2.75033747]
[1754041551152,1.5033,3636.0,3635.8,2.75040251]
[1754041551358,16.10314001,3636.1,3635.9,2.75034973]
[1754041551518,1.5033,3636.0,3635.9,2.75034973]
[1754041551910,1.9519,3636.0,3635.7,2.75048063]
[1754041552124,0.5862,3635.9,3635.7,2.75048063]
[1754041552329,2.0895,3635.9,3635.8,2.75042631]
[1754041552552,0.5862,3635.9,3635.8,2.75042631]
[1754041553134,2.0895,3635.9,3635.8,2.75042631]
[1754041553842,5.8409,3635.9,3635.8,2.75042631]
[1754041554042,6.2895,3635.9,3635.7,2.75049526]
[1754041554242,4.7862,3635.9,3635.8,2.75042631]
[1754041554955,6.2895,3635.9,3635.8,2.75042631]
[1754041555559,5.8409,3635.9,3635.7,2.75047616]
[1754041555780,4.7862,3635.9,3635.7,2.75047616]
[1754041556064,1.5033,3635.8,3635.4,0.1376]
[1754041556226,15.51794001,3635.7,3635.5,2.7505997]
[1754041556422,15.65554001,3635.7,3635.6,2.75057762]
[1754041556628,15.96654001,3635.7,3635.5,2.75064643]
[1754041557044,0.1376,3635.6,3635.5,2.75064643]
[1754041557251,1.6409,3635.6,3635.5,2.75064643]
[1754041559245,0.1376,3635.6,3635.2,4.2]
[1754041559457,11.31794001,3635.3,3635.2,2.7508185]
[1754041559672,15.51794001,3635.3,3635.2,2.7508185]
[1754041559969,17.02124001,3635.3,3635.2,2.7508185]
[1754041560176,17.46984001,3635.3,3635.2,2.7508185]
[1754041560482,17.46984001,3635.3,3634.9,0.1376]
[1754041560663,3.47437374,3635.2,3635.1,2.75095595]
[1754041561338,1.9519,3635.2,3634.8,2.75117184]
[1754041561550,6.1519,3635.1,3635.0,2.75103163]
[1754041561758,6.2895,3635.1,3635.0,2.75103163]
[1754041562273,6.2895,3635.1,3634.8,2.75116141]
[1754041562462,11.31794001,3634.9,3634.7,2.75124171]
[1754041562669,6.1519,3634.8,3634.7,2.75124171]
[1754041564088,5.7033,3634.8,3634.7,2.75124171]
[1754041565291,4.2,3634.8,3634.7,2.75124171]
[1754041566770,1.5033,3634.8,3634.2,0.20564469]
[1754041567085,1.5033,3634.8,3634.7,2.7512587]
[1754041567086,3.068854,3634.8,3634.7,2.7512587]
[1754041567394,7.268854,3634.8,3634.7,2.7512587]
[1754041567687,7.717454,3634.8,3634.7,2.7512587]
[1754041567891,6.2895,3634.8,3634.7,2.7512587]
[1754041569559,4.3376,3634.8,3634.0,3.1376]
[1754041569857,11.31794001,3634.1,3634.0,2.75172425]
[1754041570672,12.82124001,3634.1,3634.0,2.75172425]
[1754041571492,12.82124001,3635.1,3634.8,2.75115664]
[1754041571655,5.7043,3635.0,3634.8,2.75115664]
[1754041571855,0.1376,3634.9,3634.7,2.75124045]
[1754041572089,5.7033,3634.8,3634.7,2.75124045]
[1754041572271,6.2895,3634.8,3634.7,2.75124045]
[1754041574101,0.1376,3634.8,3634.7,2.75124045]
[1754041574419,11.31794001,3635.4,3635.1,2.7508886]
[1754041574616,0.1376,3635.2,3635.0,2.75101516]
[1754041574771,17.02124001,3635.1,3634.2,4.2]
[1754041574966,17.02124001,3635.1,3632.3,11.31794001]
[1754041574967,11.31794001,3634.3,3633.6,0.4734]
[1754041575192,11.31794001,3634.3,3633.8,2.75194011]
[1754041575193,11.31794001,3633.9,3633.8,2.75194011]
[1754041575498,0.1376,3633.8,3633.7,2.75199158]
[1754041575667,1.6409,3633.8,3633.7,2.75199158]
[1754041576006,6.2895,3633.8,3632.7,2.75277341]
[1754041576297,11.31794001,3633.2,3633.1,2.75247034]
[1754041576497,15.51794001,3633.2,3633.1,2.75247034]
[1754041576872,4.2,3633.2,3633.1,2.75247034]
[1754041577960,5.7988,3633.2,3633.1,2.75247034]
[1754041578165,6.4056,3633.2,3632.6,2.75278267]
[1754041578387,1.5988,3633.1,3632.5,4.201]
[1754041578605,4.3386,3633.0,3632.9,2.75257117]
[1754041578969,5.9374,3633.0,3632.9,2.75257117]
[1754041580778,6.4066,3633.0,3632.9,2.75257117]
[1754041580978,7.10994,3633.0,3632.9,2.75262187]
[1754041581214,0.84094,3633.0,3632.9,2.75262187]
[1754041581521,4.3386,3633.0,3632.9,2.75262187]
[1754041581682,2.06920882,3633.8,3633.1,2.75247034]
[1754041581882,2.06920882,3633.8,3633.7,2.75201585]
[1754041582184,1.5988,3634.1,3633.9,2.75186438]
[1754041582392,5.7998,3634.0,3633.9,2.75186438]
[1754041582582,5.9374,3634.0,3633.9,2.75186438]
[1754041583118,5.9374,3634.0,3633.2,3.0]
[1754041583119,6.4066,3634.0,3633.2,3.0]
[1754041583349,0.1376,3633.5,3633.4,2.75224307]
[1754041583482,4.3386,3633.5,3633.4,2.75224307]
[1754041584200,5.9374,3633.5,3633.3,2.75230426]
[1754041584530,5.9374,3633.5,3633.4,2.75224307]
[1754041585226,5.9374,3633.5,3633.3,2.75229325]
[1754041585580,4.3386,3633.5,3633.3,2.75230686]
[1754041585813,4.81938,3633.5,3632.9,5.0946]
[1754041585991,1.5988,3633.7,3633.5,2.7521599]
[1754041586177,5.7998,3633.6,3633.5,2.7521599]
[1754041586384,5.7998,3633.6,3633.4,2.75222021]
[1754041586385,5.9374,3633.6,3633.4,2.75222021]
[1754041586584,5.7998,3633.6,3633.5,2.75216733]
[1754041586796,1.5988,3633.6,3633.5,2.75216733]
[1754041586999,1.7364,3633.6,3633.5,2.75216733]
[1754041587214,4.3386,3633.6,3633.5,2.75216733]
[1754041587828,4.3386,3633.6,3633.4,2.75221468]
[1754041588030,1.5988,3633.6,3633.4,2.75221468]
[1754041588325,5.9374,3633.5,3633.4,2.75221468]
[1754041588895,4.3386,3633.5,3633.4,2.75221468]
[1754041589535,0.1376,3633.5,3633.4,2.75221468]
[1754041589829,7.06,3634.6,3634.2,2.75160638]
[1754041589830,1.5988,3634.3,3634.2,2.75160638]
[1754041590329,7.06,3634.6,3634.4,2.75145267]
[1754041590500,7.06,3634.6,3634.4,2.7514858]
[1754041590501,0.1376,3634.5,3634.4,2.7514858]
[1754041590698,5.9374,3634.5,3634.4,2.7514858]
[1754041590904,9.13143276,3634.5,3634.3,2.7515418]
[1754041591115,1.5988,3634.4,3634.3,2.7515418]
[1754041591314,1.7364,3634.4,3634.3,2.7515418]
[1754041592628,5.9374,3634.4,3634.3,2.7515418]
[1754041593203,5.9374,3634.4,3634.2,2.75160693]
[1754041593524,5.7998,3634.3,3634.2,2.75160693]
[1754041593727,4.3386,3634.3,3634.2,2.75160693]
[1754041594239,4.3386,3634.3,3634.2,2.75163722]
[1754041594602,6.4066,3634.3,3633.4,4.6381]
[1754041594803,0.1376,3634.1,3634.0,2.75174338]
[1754041595029,4.201,3634.1,3634.0,2.75174338]
[1754041595240,4.3386,3634.1,3634.0,2.75174338]
[1754041595445,5.9374,3634.1,3634.0,2.75178866]
[1754041595801,5.9374,3634.1,3633.9,2.75184094]
[1754041596004,4.6702,3634.1,3634.0,2.75178866]
[1754041596500,4.8078,3634.1,3634.0,2.75178866]
[1754041596703,6.4066,3634.1,3634.0,2.75178866]
[1754041597840,6.4066,3634.1,3633.4,4.3386]
[1754041598043,7.31974328,3634.1,3633.4,3.1376]
[1754041598244,7.18214328,3634.1,3633.1,4.201]
[1754041598433,0.1376,3633.7,3633.1,4.3386]
[1754041598629,5.7998,3633.6,3633.5,2.75216733]
[1754041599142,5.7998,3633.6,3632.8,9.158]
[1754041599344,0.1376,3633.4,3633.2,2.75232137]
[1754041599522,4.201,3633.3,3633.2,2.75232137]
[1754041599840,6.269,3633.3,3632.6,4.201]
[1754041600075,0.1376,3632.9,3632.4,4.7757]
[1754041600203,4.3386,3632.9,3632.8,3.0]
[1754041600410,5.9374,3632.9,3632.8,3.0]
[1754041600609,5.9374,3632.9,3632.8,5.75269764]
[1754041601154,5.9374,3632.9,3632.8,3.0]
[1754041601319,5.9374,3632.9,3632.8,5.75269764]
[1754041601645,5.9374,3632.9,3632.8,3.0]
[1754041601808,5.9374,3632.9,3632.8,5.75269764]
[1754041602513,6.4066,3632.9,3632.4,2.75292802]
[1754041602712,0.1376,3632.7,3632.6,5.75283657]
[1754041603055,4.3386,3632.7,3632.6,2.75283657]
[1754041607856,5.9036,3632.7,3632.6,2.75283657]
[1754041610051,5.9036,3632.7,3632.1,3.78119824]
[1754041610240,11.35361777,3632.5,3632.1,3.1376]
[1754041610429,11.35361777,3632.5,3632.4,2.7529741]
[1754041610430,17.11961777,3632.5,3632.4,2.7529741]
[1754041610765,17.11961777,3632.5,3632.0,2.75330396]
[1754041610766,0.1376,3632.4,3632.0,2.75330396]
[1754041610951,5.766,3632.3,3632.2,2.75315235]
[1754041611586,4.201,3632.3,3632.2,2.75315235]
[1754041615063,0.1376,3632.4,3632.3,2.75307656]
[1754041615260,4.3386,3632.4,3632.3,4.78427656]
[1754041615964,0.1376,3632.4,3632.3,3.20387656]
[1754041616150,4.3386,3632.4,3632.3,2.75307656]
[1754041617287,0.1376,3632.4,3632.3,2.75307656]
[1754041617462,4.3386,3632.4,3632.3,2.75307656]
[1754041618955,0.1376,3632.4,3632.3,2.75307656]
[1754041619155,4.3386,3632.4,3632.3,2.75307656]
[1754041619589,0.1376,3632.4,3632.3,2.75307656]
[1754041619786,4.3386,3632.4,3632.3,2.75307656]
[1754041619988,4.201,3632.4,3632.3,2.75307656]
[1754041620289,0.43386,3633.3,3632.9,2.75261097]
[1754041620489,0.43386,3633.3,3632.9,2.75259239]
[1754041620490,5.766,3633.2,3632.9,2.75259239]
[1754041620694,0.1376,3633.0,3632.9,2.75259239]
[1754041620856,4.3386,3633.0,3632.9,2.75259239]
[1754041621183,5.9036,3633.0,3632.9,2.75259239]
[1754041621552,4.3386,3633.0,3632.9,2.75259239]
[1754041622001,1.7026,3633.0,3632.9,2.75259239]
[1754041622294,10.84226341,3633.1,3633.0,2.7525461]
[1754041622451,7.06,3633.4,3633.3,2.75231882]
[1754041622651,1.95975478,3634.0,3633.6,2.75207375]
[1754041622891,0.4288,3634.0,3633.8,2.75194011]
[1754041623063,4.6298,3633.9,3633.8,2.75194011]
[1754041623265,4.7674,3633.9,3633.8,2.75194011]
[1754041623465,4.7674,3633.9,3633.4,1.5804]
[1754041623683,0.1376,3633.7,3633.6,2.75209158]
[1754041624782,0.1376,3633.7,3633.6,4.33249158]
[1754041624989,1.9938,3634.1,3633.9,2.75180825]
[1754041625285,4.3376,3634.0,3633.9,2.75180825]
[1754041625493,6.3314,3634.0,3633.9,2.75180825]
[1754041625695,0.5664,3634.0,3633.9,2.75186438]
[1754041625858,4.3376,3634.0,3633.9,2.75186438]
[1754041626191,0.1376,3634.0,3633.9,2.75186438]
[1754041626485,4.3376,3634.0,3633.9,4.33226438]
[1754041627050,0.1376,3634.0,3633.9,4.33226438]
[1754041627257,7.06,3635.3,3635.0,2.75098053]
[1754041627456,0.1376,3634.8,3634.7,1.5804]
[1754041627657,4.3376,3634.8,3634.7,2.7512587]
[1754041627985,4.3376,3634.8,3634.7,4.3316587]
[1754041628485,0.1376,3634.8,3634.7,4.7824587]
[1754041628856,4.2,3635.0,3634.9,2.75110732]
[1754041629089,4.2,3635.0,3634.9,4.33150732]
[1754041630215,4.2,3635.0,3634.9,2.75110732]
[1754041632788,4.2,3635.0,3634.9,4.33150732]
[1754041634160,0.1376,3635.2,3634.9,1.5804]
[1754041634363,4.199,3635.1,3634.9,2.75108723]
[1754041634556,1.9938,3635.0,3634.7,2.75121285]
[1754041634761,1.9938,3635.0,3634.7,2.7512587]
[1754041635067,1.9938,3634.9,3634.7,2.75124347]
[1754041635261,2.1314,3634.8,3634.7,2.75124347]
[1754041635456,2.1314,3634.8,3634.2,0.1376]
[1754041635457,6.3304,3634.8,3634.2,0.1376]
[1754041635657,6.3304,3634.8,3633.9,1.5804]
[1754041635658,0.1376,3634.4,3633.9,4.3366]
[1754041635939,0.1376,3634.4,3634.3,2.75156151]
[1754041636207,0.1376,3634.4,3634.2,2.75157869]
[1754041636409,0.1376,3634.4,3633.9,2.88946412]
[1754041636557,1.9459,3634.3,3633.4,1.4432]
[1754041636758,0.1376,3633.8,3633.6,2.75206477]
[1754041637101,6.1449,3633.7,3633.6,2.75206477]
[1754041637255,6.1449,3633.7,3633.3,0.1376]
[1754041637459,4.199,3633.7,3633.3,0.1376]
[1754041637655,0.1376,3633.4,3633.3,2.75231882]
[1754041637892,6.2815,3633.4,3633.3,2.75231882]
[1754041638092,6.2815,3633.4,3633.2,2.75236862]
[1754041638755,6.2815,3633.4,3633.3,2.75231882]
[1754041639460,6.2815,3633.4,3632.8,0.1376]
[1754041639669,0.1376,3633.1,3633.0,2.7525461]
[1754041639869,4.3356,3633.1,3633.0,2.7525461]
[1754041643003,4.3356,3633.1,3632.8,2.75267688]
[1754041643206,0.1376,3632.9,3632.8,2.75267688]
[1754041644678,0.1376,3632.9,3632.8,4.19587688]
[1754041645931,4.199,3633.0,3632.9,2.75255685]
[1754041646129,0.1376,3633.3,3633.2,2.75239458]
[1754041646283,4.3366,3633.3,3633.2,2.75239458]
[1754041647103,4.3366,3633.3,3633.1,2.75244331]
[1754041647620,2.0835,3633.3,3633.1,2.75244331]
[1754041647816,4.199,3633.2,3633.1,2.75244331]
[1754041647999,6.1449,3633.2,3632.9,2.75255051]
[1754041648200,0.1376,3633.0,3632.9,2.75255051]
[1754041648598,0.1376,3633.0,3632.9,4.19575051]
[1754041650034,4.199,3633.2,3633.1,2.75247034]
[1754041650335,4.199,3633.2,3633.1,4.19567034]
[1754041651638,0.1376,3633.3,3633.2,2.75239458]
[1754041651922,0.1376,3633.6,3633.5,2.75216733]
[1754041652133,0.1376,3633.7,3633.6,2.75209158]
[1754041652900,0.1376,3633.7,3633.6,4.19529158]
[1754041653289,0.1376,3633.7,3633.6,2.75209158]
[1754041653926,4.199,3633.8,3633.7,2.75201585]
[1754041654129,0.1376,3633.9,3633.8,2.75194011]
[1754041654318,17.96058519,3634.6,3633.9,2.75186438]
[1754041654522,17.96058519,3634.6,3634.5,2.75141009]
[1754041654717,19.90648519,3634.6,3634.5,2.75141009]
[1754041655042,20.04408519,3634.6,3634.5,2.75141009]
[1754041655205,13.43208519,3634.6,3634.5,2.75141009]
[1754041655398,15.68418519,3634.6,3634.5,2.75141009]
[1754041655798,17.63008519,3634.6,3634.3,2.75150428]
[1754041656031,0.1376,3634.4,3634.3,2.75150428]
[1754041656602,2.0835,3634.4,3634.0,4.19498859]
[1754041656799,4.198,3634.3,3634.2,2.7515895]
[1754041657734,6.1439,3634.3,3634.2,2.7515895]
[1754041658150,6.1439,3634.3,3633.9,2.75182409]
[1754041658325,0.1376,3634.0,3633.8,2.75194011]
[1754041658531,4.3356,3634.0,3633.8,2.75194011]
[1754041658838,1.9459,3633.9,3633.8,2.75194011]
[1754041659148,1.9459,3633.9,3633.5,2.7521358]
[1754041659303,11.34858519,3633.7,3633.4,2.75221185]
[1754041659505,2.0835,3633.6,3633.4,2.75221185]
[1754041659726,1.9459,3633.5,3633.4,2.75221185]
[1754041659925,1.9459,3633.5,3632.7,2.75271122]
[1754041660127,11.48618519,3633.3,3632.9,2.75259753]
[1754041660336,11.34858519,3633.3,3632.7,2.75277341]
[1754041660503,11.34858519,3633.3,3632.5,1.5808]
[1754041660504,0.1376,3633.0,3632.9,2.75262187]
[1754041660836,4.3356,3633.0,3632.8,2.75266529]
[1754041661136,4.3356,3633.0,3632.9,2.75262187]
[1754041661653,4.3356,3633.0,3632.9,4.19582187]
[1754041662309,4.198,3633.7,3632.9,5.3625749]
[1754041662502,0.1376,3633.5,3633.4,2.75218093]
[1754041664040,1.4746,3634.5,3633.4,1.8722]
[1754041664210,0.1376,3634.0,3633.9,2.75186438]
[1754041664535,3.0,3634.9,3634.4,2.7514858]
[1754041664738,6.1439,3634.8,3634.5,2.75138994]
[1754041664938,6.1439,3634.8,3634.4,2.75144185]
[1754041665144,4.198,3634.8,3634.3,2.75156151]
[1754041665327,1.9459,3634.7,3634.3,2.751513]
[1754041665650,0.1376,3634.4,3634.3,2.75151176]
[1754041665820,4.3356,3634.4,3634.3,2.75151176]
[1754041669044,4.3356,3634.4,3634.0,1.4525]
[1754041669045,4.3356,3634.4,3634.2,2.75159263]
[1754041670042,4.3356,3634.4,3634.1,2.75168649]
[1754041670648,4.3356,3634.4,3634.0,2.75177317]
[1754041671345,4.198,3634.3,3633.7,8.5401023]
[1754041671510,4.198,3634.3,3634.0,2.75178585]
[1754041672014,1.9249,3634.2,3634.0,2.75178585]
[1754041673266,4.198,3634.3,3634.1,2.75170041]